bitfinex/quotes_BTCUSD_20250123
["timestamp","ask_amount","ask_price","bid_price","bid_amount"]
[1737627396217,3e-07,101890.0,101880.0,0.82647343]
[1737627396830,0.0001027,101900.0,101890.0,0.268145]
[1737627397056,4.4e-07,101900.0,101890.0,0.63409673]
[1737627397390,0.0001424,101930.0,101900.0,0.02]
[1737627397591,0.00029382,101930.0,101920.0,0.44223607]
[1737627397813,0.00029382,101930.0,101920.0,0.331016]
[1737627402094,0.00029382,101930.0,101920.0,0.53958336]
[1737627404237,0.00020382,101930.0,101920.0,0.58928336]
[1737627404446,0.00020382,101930.0,101920.0,0.59964336]
[1737627406648,8.2e-07,101930.0,101920.0,0.66964336]
[1737627408430,8.2e-07,101930.0,101920.0,0.62938946]
[1737627408672,8.2e-07,101930.0,101920.0,0.60938946]
[1737627408888,8.2e-07,101930.0,101920.0,0.49816939]
[1737627409088,8.2e-07,101930.0,101920.0,0.60938946]
[1737627409644,8.2e-07,101930.0,101920.0,0.34816939]
[1737627410055,8.2e-07,101930.0,101920.0,0.49816939]
[1737627412502,8.2e-07,101930.0,101920.0,0.60938946]
[1737627413968,8.2e-07,101930.0,101920.0,0.49816939]
[1737627414875,8.2e-07,101930.0,101920.0,0.36568939]
[1737627415106,8.2e-07,101930.0,101920.0,0.35512939]
[1737627415311,8.2e-07,101930.0,101920.0,0.36568939]
[1737627415516,8.2e-07,101930.0,101920.0,0.36598822]
[1737627415688,0.00014312,101930.0,101920.0,0.36598822]
[1737627419478,0.00014312,101930.0,101920.0,0.26864093]
[1737627419659,0.00014312,101930.0,101920.0,0.26856093]
[1737627420719,0.08234312,101930.0,101920.0,0.25808093]
[1737627421357,0.18044912,101930.0,101920.0,0.25808093]
[1737627421743,0.08234312,101930.0,101920.0,0.25808093]
[1737627421944,0.18044912,101930.0,101920.0,0.25808093]
[1737627423009,0.18044912,101930.0,101920.0,0.24841483]
[1737627423212,0.08234312,101930.0,101920.0,0.24841483]
[1737627424244,0.08234312,101930.0,101920.0,0.09841483]
[1737627425969,0.18044912,101930.0,101920.0,0.09841483]
[1737627426168,0.18044912,101930.0,101920.0,0.00029883]
[1737627426420,0.30079641,101930.0,101920.0,0.00029883]
[1737627426795,0.30079641,101930.0,101920.0,0.09841483]
[1737627428027,0.30079641,101930.0,101920.0,0.00029883]
[1737627428368,0.30079641,101930.0,101920.0,0.09841483]
[1737627429910,0.20269041,101930.0,101920.0,0.09841483]
[1737627431087,0.30079641,101930.0,101920.0,0.09841483]
[1737627431484,0.20269041,101930.0,101920.0,0.09841483]
[1737627431671,0.00014312,101930.0,101920.0,0.09841483]
[1737627431886,0.00014312,101930.0,101920.0,0.53498219]
[1737627432019,0.00014312,101930.0,101920.0,0.58418219]
[1737627436506,0.00014312,101930.0,101920.0,0.61484562]
[1737627437320,0.00014312,101930.0,101920.0,0.59524219]
[1737627437653,0.00014312,101930.0,101920.0,0.48402212]
[1737627438589,0.00014312,101930.0,101920.0,0.49387981]
[1737627444103,0.00014312,101930.0,101920.0,0.26933252]
[1737627444360,0.00014312,101930.0,101920.0,0.25877252]
[1737627444773,0.00014312,101930.0,101920.0,0.24891483]
[1737627445198,0.09824912,101930.0,101920.0,0.09891483]
[1737627445410,0.29289483,101930.0,101920.0,0.09891483]
[1737627445614,0.29289483,101930.0,101920.0,0.00079883]
[1737627445615,0.69024212,101930.0,101920.0,0.00079883]
[1737627445820,0.60149641,101930.0,101920.0,0.00079883]
[1737627446148,0.60149641,101930.0,101920.0,0.09891483]
[1737627446356,0.60149641,101930.0,101920.0,0.00079883]
[1737627446569,0.60149641,101930.0,101920.0,0.09891483]
[1737627448890,0.60149641,101930.0,101920.0,0.00079883]
[1737627449302,0.81006377,101930.0,101920.0,0.00079883]
[1737627449501,0.85606377,101930.0,101920.0,0.00079883]
[1737627450413,0.7448437,101930.0,101920.0,0.00079883]
[1737627450865,0.64749641,101930.0,101920.0,0.00079883]
[1737627453054,0.53383046,101930.0,101920.0,0.00079883]
[1737627454817,0.68383046,101930.0,101920.0,0.00079883]
[1737627455081,0.61383046,101930.0,101920.0,0.00079883]
[1737627455283,0.61383046,101930.0,101910.0,1.0]
[1737627455284,1.01505614,101920.0,101910.0,1.0]
[1737627455484,1.20975072,101920.0,101910.0,1.0]
[1737627455693,1.10975072,101920.0,101910.0,1.0]
[1737627455899,1.10975072,101920.0,101910.0,0.88986573]
[1737627456100,1.13728201,101920.0,101910.0,0.88986573]
[1737627456304,1.06168201,101920.0,101910.0,0.81176573]
[1737627456515,1.01578201,101920.0,101910.0,0.70106573]
[1737627456737,1.01578201,101920.0,101910.0,0.56408273]
[1737627456971,0.168154,101880.0,101870.0,0.00029904]
[1737627457170,0.48542726,101880.0,101870.0,0.00029904]
[1737627457402,0.51295855,101880.0,101870.0,0.00029904]
[1737627458415,0.48542726,101880.0,101870.0,0.00080378]
[1737627460025,0.63542726,101880.0,101870.0,0.00080378]
[1737627460248,0.58542726,101880.0,101870.0,0.00080378]
[1737627462650,0.60509122,101880.0,101870.0,0.00080378]
[1737627464348,0.71631129,101880.0,101870.0,0.00080378]
[1737627464842,0.70601433,101880.0,101870.0,0.00080378]
[1737627465163,0.61281294,101880.0,101870.0,0.00080378]
[1737627465495,0.82218701,101880.0,101870.0,0.00080378]
[1737627466109,0.71096694,101880.0,101870.0,0.00080378]
[1737627466259,0.68343565,101880.0,101870.0,0.00080378]
[1737627467342,0.70643565,101880.0,101870.0,0.00080378]
[1737627467844,0.73396694,101880.0,101870.0,0.00080378]
[1737627468224,0.70643565,101880.0,101870.0,0.00080378]
[1737627469193,0.80067565,101880.0,101870.0,0.00080378]
[1737627469591,0.91189572,101880.0,101870.0,0.00080378]
[1737627470245,0.94024866,101880.0,101870.0,0.00080378]
[1737627470476,0.84024866,101880.0,101870.0,0.00080378]
[1737627470903,0.86481268,101880.0,101870.0,0.00080378]
[1737627471113,1.46713168,101880.0,101870.0,0.00080378]
[1737627472152,0.86481268,101880.0,101870.0,0.00080378]
[1737627472702,2.86497868,101880.0,101870.0,0.00080378]
[1737627473439,0.098193,101840.0,101830.0,0.12629904]
[1737627473618,0.28854029,101840.0,101830.0,0.08014964]
[1737627473819,0.3169717,101840.0,101830.0,0.08014964]
[1737627474017,0.34153572,101840.0,101830.0,0.08014964]
[1737627474258,0.59153572,101840.0,101830.0,0.00044964]
[1737627474425,0.54153572,101840.0,101830.0,0.00044964]
[1737627474771,0.63094062,101840.0,101830.0,0.00044964]
[1737627475314,0.6063766,101840.0,101830.0,0.00044964]
[1737627476181,0.5863766,101840.0,101830.0,0.00044964]
[1737627477119,0.69759667,101840.0,101830.0,0.00044964]
[1737627477333,0.70765973,101840.0,101830.0,0.00044964]
[1737627478310,0.7178926,101840.0,101830.0,0.00044964]
[1737627478490,0.68946119,101840.0,101830.0,0.00044964]
[1737627481331,0.7091798,101840.0,101830.0,0.00044964]
[1737627483812,0.7291798,101840.0,101830.0,0.00044964]
[1737627483998,0.6397749,101840.0,101830.0,0.08154964]
[1737627485458,0.7340549,101840.0,101830.0,0.08154964]
[1737627490050,0.7840549,101840.0,101830.0,0.08154964]
[1737627490208,0.20186016,101840.0,101830.0,0.22515164]
[1737627491026,0.39428,101840.0,101830.0,0.22515164]
[1737627491222,0.09428,101840.0,101830.0,0.22515164]
[1737627492068,0.70104036,101840.0,101830.0,0.12694964]
[1737627492429,0.80104036,101840.0,101830.0,0.12694964]
[1737627492630,0.89838765,101840.0,101830.0,0.12694964]
[1737627492877,0.99138765,101840.0,101830.0,0.12694964]
[1737627493694,0.57915942,101840.0,101830.0,0.12694964]
[1737627494097,0.59915942,101840.0,101830.0,0.12694964]
[1737627494744,0.50487942,101840.0,101830.0,0.12694964]
[1737627496384,0.50482739,101840.0,101830.0,0.12694964]
[1737627497300,0.48482739,101840.0,101830.0,0.12694964]
[1737627497509,0.50482739,101840.0,101830.0,0.12694964]
[1737627498531,0.48482739,101840.0,101830.0,0.12694964]
[1737627499704,0.50482739,101840.0,101830.0,0.12694964]
[1737627499920,0.60217468,101840.0,101830.0,0.12694964]
[1737627501422,0.48482739,101840.0,101830.0,0.12694964]
[1737627501636,0.48474933,101840.0,101830.0,0.12694964]
[1737627503437,0.37352926,101840.0,101830.0,0.12694964]
[1737627503669,0.30052926,101840.0,101830.0,0.12694964]
[1737627504020,0.60052926,101840.0,101830.0,0.22515164]
[1737627504223,0.40233626,101840.0,101830.0,0.22515164]
[1737627505094,0.50052926,101840.0,101830.0,0.22515164]
[1737627506499,0.40233626,101840.0,101830.0,0.22515164]
[1737627506695,0.50052926,101840.0,101830.0,0.22515164]
[1737627508743,0.50067186,101840.0,101830.0,0.22515164]
[1737627509075,0.09703353,101860.0,101830.0,0.37429693]
[1737627509276,0.0868105,101860.0,101850.0,0.33840307]
[1737627509479,0.0868105,101860.0,101850.0,0.47453029]
[1737627509691,0.0868105,101860.0,101850.0,0.58575036]
[1737627509891,0.0868105,101860.0,101850.0,0.47453029]
[1737627510339,0.0001425,101860.0,101850.0,0.47453029]
[1737627510693,0.0001425,101860.0,101850.0,0.377183]
[1737627514312,0.0001425,101860.0,101850.0,0.227183]
[1737627515859,0.0001425,101860.0,101850.0,0.239143]
[1737627518162,0.0001425,101860.0,101850.0,0.24910787]
[1737627522338,0.0001425,101860.0,101850.0,0.227183]
[1737627524281,0.20953557,101860.0,101850.0,0.129]
[1737627524486,0.0983155,101860.0,101850.0,0.129]
[1737627525180,0.0983155,101860.0,101850.0,0.227183]
[1737627525482,0.0983155,101860.0,101850.0,0.129]
[1737627526098,0.0983155,101860.0,101850.0,0.227183]
[1737627526099,0.0001425,101860.0,101850.0,0.227183]
[1737627527072,0.0001425,101860.0,101850.0,0.43575036]
[1737627527329,0.0001425,101860.0,101850.0,0.58575036]
[1737627532447,0.0001425,101860.0,101850.0,0.47453029]
[1737627533061,0.0001425,101860.0,101850.0,0.48423577]
[1737627534512,0.0001425,101860.0,101850.0,0.59545584]
[1737627535156,0.0001425,101860.0,101850.0,0.62709584]
[1737627537037,0.0001425,101860.0,101850.0,0.60709584]
[1737627537388,0.0001425,101860.0,101850.0,0.62709584]
[1737627541738,0.0001425,101860.0,101850.0,0.49587577]
[1737627541942,0.0001425,101860.0,101850.0,0.49579577]
[1737627542369,0.0001425,101860.0,101850.0,0.24848848]
[1737627542543,0.0001425,101860.0,101850.0,0.39848848]
[1737627543160,0.0001425,101860.0,101850.0,0.377183]
[1737627543605,0.0001425,101860.0,101850.0,0.227183]
[1737627543783,0.0983155,101860.0,101850.0,0.227183]
[1737627543936,0.06004466,101860.0,101850.0,0.179383]
[1737627544150,0.41658558,101860.0,101850.0,0.098183]
[1737627544422,0.61293558,101860.0,101840.0,0.81520246]
[1737627544626,0.61293558,101860.0,101850.0,0.098183]
[1737627544832,0.61293558,101860.0,101840.0,0.52064146]
[1737627545036,0.80929158,101860.0,101840.0,0.32426846]
[1737627545236,0.80929158,101860.0,101840.0,0.61883146]
[1737627545586,0.01827008,101850.0,101840.0,0.42245446]
[1737627546997,0.5946655,101860.0,101840.0,0.61882846]
[1737627547194,0.7910245,101860.0,101840.0,0.61882846]
[1737627547419,0.99959186,101860.0,101840.0,0.61882846]
[1737627547819,0.88837179,101860.0,101840.0,0.61882846]
[1737627548024,0.88837179,101860.0,101840.0,0.08019946]
[1737627548025,0.098183,101850.0,101840.0,0.08019946]
[1737627548229,0.098183,101850.0,101840.0,0.00029946]
[1737627548589,0.098183,101850.0,101840.0,0.09849246]
[1737627549196,0.098183,101850.0,101840.0,0.00029946]
[1737627549600,0.60675036,101850.0,101840.0,0.00029946]
[1737627549990,0.49553029,101850.0,101840.0,0.00029946]
[1737627550746,0.60675036,101850.0,101840.0,0.00029946]
[1737627551466,0.49553029,101850.0,101840.0,0.00029946]
[1737627557080,0.39734729,101850.0,101840.0,0.00029946]
[1737627557311,0.49553029,101850.0,101840.0,0.00029946]
[1737627557562,0.398183,101850.0,101840.0,0.09849246]
[1737627559586,0.398183,101850.0,101840.0,0.00029946]
[1737627559982,0.398183,101850.0,101840.0,0.09849246]
[1737627561338,0.3,101850.0,101840.0,0.09849246]
[1737627564294,0.3,101850.0,101840.0,0.17579246]
[1737627564676,0.3,101850.0,101840.0,0.0773]
[1737627564883,0.3,101850.0,101840.0,0.175493]
[1737627565067,0.398183,101850.0,101840.0,0.175493]
[1737627566308,0.3,101850.0,101840.0,0.175493]
[1737627567516,0.5946745,101860.0,101840.0,0.07759946]
[1737627567697,0.69202179,101860.0,101850.0,0.098183]
[1737627571409,0.93837779,101860.0,101840.0,0.56852646]
[1737627571602,0.50940307,101850.0,101840.0,0.07759946]
[1737627571817,0.3,101850.0,101840.0,0.17579246]
[1737627572675,0.30004069,101850.0,101840.0,0.17579246]
[1737627573585,0.39822369,101850.0,101840.0,0.17579246]
[1737627575926,0.39822369,101850.0,101840.0,0.07759946]
[1737627576253,0.39822369,101850.0,101840.0,0.17579246]
[1737627580580,0.39836629,101850.0,101840.0,0.17579246]
[1737627582325,0.39836629,101850.0,101840.0,0.07759946]
[1737627582529,0.60693365,101850.0,101840.0,0.07759946]
[1737627582770,0.75428094,101850.0,101840.0,0.00029946]
[1737627583155,0.58550101,101850.0,101840.0,0.00029946]
[1737627583907,0.47428094,101850.0,101840.0,0.00029946]
[1737627585248,0.49391253,101850.0,101840.0,0.00029946]
[1737627586191,0.50378436,101850.0,101840.0,0.00029946]
[1737627587686,0.40643707,101850.0,101840.0,0.00029946]
[1737627588434,0.42943707,101850.0,101840.0,0.00029946]
[1737627589214,0.69065714,101850.0,101840.0,0.00029946]
[1737627589429,0.57943707,101850.0,101840.0,0.00029946]
[1737627589578,0.58965667,101850.0,101840.0,0.00029946]
[1737627589781,0.68700396,101850.0,101840.0,0.00029946]
[1737627589980,0.79822403,101850.0,101840.0,0.00029946]
[1737627591147,0.68700396,101850.0,101840.0,0.00029946]
[1737627591725,0.56665667,101850.0,101840.0,0.00029946]
[1737627592050,0.56665667,101850.0,101840.0,0.08179946]
[1737627593211,0.51665667,101850.0,101840.0,0.08179946]
[1737627593992,0.49665667,101850.0,101840.0,0.08179946]
[1737627594192,0.51665667,101850.0,101840.0,0.08179946]
[1737627594369,0.49665667,101850.0,101840.0,0.08179946]
[1737627594613,0.51665667,101850.0,101840.0,0.08179946]
[1737627594765,0.79665667,101850.0,101840.0,0.08179946]
[1737627595622,0.81965667,101850.0,101840.0,0.08179946]
[1737627596564,0.67967779,101850.0,101840.0,0.09484437]
[1737627596693,0.56845772,101850.0,101840.0,0.12989946]
[1737627597502,0.67967779,101850.0,101840.0,0.12989946]
[1737627599963,0.72967779,101850.0,101840.0,0.12989946]
[1737627600411,0.93824515,101850.0,101840.0,0.08179946]
[1737627600610,1.03559244,101850.0,101840.0,0.08179946]
[1737627600765,0.92437237,101850.0,101840.0,0.08179946]
[1737627600968,0.94737237,101850.0,101840.0,0.08179946]
[1737627601153,0.77859244,101850.0,101840.0,0.00029946]
[1737627601359,0.76837284,101850.0,101840.0,0.00029946]
[1737627603117,0.65715277,101850.0,101840.0,0.00029946]
[1737627603920,0.74382077,101850.0,101840.0,0.00029946]
[1737627604136,0.85504084,101850.0,101840.0,0.00029946]
[1737627605585,0.74382077,101850.0,101840.0,0.00029946]
[1737627606063,0.85504084,101850.0,101840.0,0.00029946]
[1737627606480,0.74382077,101850.0,101840.0,0.00029946]
[1737627608264,0.85504084,101850.0,101840.0,0.00029946]
[1737627608861,0.93504084,101850.0,101840.0,0.00029946]
[1737627609061,0.88504084,101850.0,101840.0,0.00029946]
[1737627609323,0.78504084,101850.0,101840.0,0.00029946]
[1737627612126,0.87932084,101850.0,101840.0,0.00029946]
[1737627612548,0.79265284,101850.0,101840.0,0.00029946]
[1737627618553,0.89595284,101850.0,101840.0,0.00029946]
[1737627618761,0.79265284,101850.0,101840.0,0.00029946]
[1737627619640,0.71614234,101850.0,101840.0,0.00029946]
[1737627619845,0.80413577,101850.0,101840.0,0.00029946]
[1737627622250,0.80413577,101850.0,101840.0,0.12349946]
[1737627622251,0.73382366,101850.0,101840.0,0.12349946]
[1737627622462,0.63382366,101850.0,101840.0,0.12349946]
[1737627623142,0.78382366,101850.0,101840.0,0.12349946]
[1737627623770,0.82201327,101850.0,101840.0,0.12349946]
[1737627624322,0.77201327,101850.0,101840.0,0.12349946]
[1737627624533,0.86936056,101850.0,101840.0,0.12349946]
[1737627624795,0.82798701,101850.0,101840.0,0.12349946]
[1737627625019,0.93914144,101850.0,101840.0,0.12349946]
[1737627625658,0.78914144,101850.0,101840.0,0.12349946]
[1737627625872,0.58063972,101850.0,101840.0,0.22169246]
[1737627626827,0.28063972,101850.0,101840.0,0.22169246]
[1737627627868,0.18245672,101850.0,101840.0,0.22169246]
[1737627628287,0.28063972,101850.0,101840.0,0.22169246]
[1737627628468,0.39179415,101850.0,101840.0,0.22169246]
[1737627628706,0.29361115,101850.0,101840.0,0.22169246]
[1737627628911,0.30380072,101850.0,101840.0,0.22169246]
[1737627629115,0.30380072,101850.0,101840.0,0.12349946]
[1737627629438,0.30380072,101850.0,101840.0,0.22169246]
[1737627629843,0.30380072,101850.0,101840.0,0.12349946]
[1737627630811,0.70114801,101850.0,101840.0,0.12349946]
[1737627635791,0.60686801,101850.0,101840.0,0.12349946]
[1737627637673,0.60686801,101850.0,101840.0,0.22169246]
[1737627637870,0.49571358,101850.0,101840.0,0.22169246]
[1737627638017,0.49571358,101850.0,101840.0,0.12349946]
[1737627638849,0.60686801,101850.0,101840.0,0.12349946]
[1737627642763,0.62706961,101850.0,101840.0,0.12349946]
[1737627644020,0.60686801,101850.0,101840.0,0.12349946]
[1737627645665,0.71802244,101850.0,101840.0,0.12349946]
[1737627645877,0.36461608,101850.0,101840.0,0.12349946]
[1737627646087,0.49166483,101850.0,101840.0,0.12349946]
[1737627646306,0.56461608,101850.0,101840.0,0.12349946]
[1737627646483,0.66196337,101850.0,101840.0,0.12349946]
[1737627646657,0.58901212,101850.0,101840.0,0.12349946]
[1737627647076,0.66196337,101850.0,101840.0,0.12349946]
[1737627647430,0.58901212,101850.0,101840.0,0.12349946]
[1737627647635,0.44166483,101850.0,101840.0,0.12349946]
[1737627647840,0.49166483,101850.0,101840.0,0.12349946]
[1737627652611,0.56866483,101850.0,101840.0,0.12349946]
[1737627660514,0.00018329,101850.0,101840.0,0.22169246]
[1737627663877,0.07313454,101850.0,101840.0,0.22169246]
[1737627664082,0.00018329,101850.0,101840.0,0.22169246]
[1737627664845,0.17131754,101850.0,101840.0,0.22169246]
[1737627665025,0.17131754,101850.0,101840.0,0.12349946]
[1737627665384,0.56866483,101850.0,101840.0,0.12349946]
[1737627666710,0.63184342,101850.0,101840.0,0.12349946]
[1737627667122,0.56866483,101850.0,101840.0,0.12349946]
[1737627670502,0.49571358,101850.0,101840.0,0.22169246]
[1737627671393,0.55866483,101850.0,101840.0,0.22169246]
[1737627671620,0.48571358,101850.0,101840.0,0.22169246]
[1737627672907,0.3,101850.0,101840.0,0.22169246]
[1737627673937,0.3001425,101850.0,101840.0,0.22169246]
[1737627675456,0.0001425,101850.0,101840.0,0.22169246]
[1737627676671,0.0001425,101850.0,101840.0,0.44464371]
[1737627677076,0.0001425,101850.0,101840.0,0.541991]
[1737627678938,0.0001425,101850.0,101840.0,0.46903975]
[1737627679144,0.0001425,101850.0,101840.0,0.541991]
[1737627679347,0.0001425,101850.0,101840.0,0.46903975]
[1737627680210,0.0001425,101850.0,101840.0,0.541991]
[1737627680421,0.0001425,101850.0,101840.0,0.46903975]
[1737627680550,0.0001425,101850.0,101840.0,0.541991]
[1737627682159,0.0001425,101850.0,101840.0,0.46903975]
[1737627682361,0.0001425,101850.0,101840.0,0.541991]
[1737627682573,0.0001425,101850.0,101840.0,0.561991]
[1737627683189,0.0001425,101850.0,101840.0,0.63494225]
[1737627683393,0.0001425,101860.0,101850.0,0.378083]
[1737627683594,0.0001425,101860.0,101850.0,0.54838154]
[1737627686430,0.0001425,101880.0,101860.0,0.02]
[1737627686684,0.0001425,101880.0,101870.0,0.55808254]
[1737627686881,0.0001425,101880.0,101870.0,0.48513129]
[1737627687844,0.0001929,101880.0,101870.0,0.48513129]
[1737627691742,0.0001929,101880.0,101870.0,0.387784]
[1737627692172,0.0001929,101880.0,101870.0,0.39737789]
[1737627693237,0.0001929,101880.0,101870.0,0.38705789]
[1737627693440,0.0001929,101880.0,101870.0,0.39737789]
[1737627694076,0.0001929,101880.0,101870.0,0.38705789]
[1737627694415,0.0001929,101880.0,101870.0,0.227464]
[1737627694621,0.50935363,101880.0,101870.0,0.13962]
[1737627694827,0.50935363,101880.0,101870.0,0.1293]
[1737627695978,0.50935363,101880.0,101870.0,0.227464]
[1737627696196,0.3983469,101880.0,101870.0,0.227464]
[1737627698552,0.3001929,101880.0,101870.0,0.227464]
[1737627698760,0.0001929,101880.0,101870.0,0.227464]
[1737627701729,0.0001929,101880.0,101870.0,0.377464]
[1737627704698,0.0001929,101880.0,101870.0,0.47481129]
[1737627706899,0.0001929,101880.0,101870.0,0.58581802]
[1737627707332,0.0001929,101880.0,101870.0,0.47481129]
[1737627707736,0.0001929,101880.0,101870.0,0.58581802]
[1737627709731,0.0001929,101880.0,101870.0,0.63581802]
[1737627710389,0.0001929,101880.0,101870.0,0.58581802]
[1737627710760,0.0001929,101880.0,101870.0,0.63581802]
[1737627711530,0.0001929,101880.0,101870.0,0.58581802]
[1737627711743,0.0001929,101880.0,101870.0,0.65581802]
[1737627715247,0.0001929,101880.0,101870.0,0.60581802]
[1737627715453,0.0001929,101880.0,101870.0,0.65581802]
[1737627716324,0.594351,101920.0,101910.0,0.098125]
[1737627716554,0.88798876,101920.0,101900.0,0.41819]
[1737627716770,0.88798876,101920.0,101900.0,0.475009]
[1737627718152,1.08423276,101920.0,101900.0,0.475009]
[1737627718358,0.88798876,101920.0,101900.0,0.475009]
[1737627718976,0.88789971,101920.0,101900.0,0.475009]
[1737627719199,0.30005047,101920.0,101910.0,0.173425]
[1737627721038,0.30005047,101920.0,101910.0,0.2023119]
[1737627721571,0.30019287,101920.0,101910.0,0.2023119]
[1737627723258,0.30019287,101920.0,101910.0,0.173425]
[1737627725622,0.30019287,101920.0,101910.0,0.33333173]
[1737627725623,0.00019287,101920.0,101910.0,0.33333173]
[1737627725826,0.00019287,101920.0,101910.0,0.222325]
[1737627732022,0.00019287,101920.0,101910.0,0.58067902]
[1737627733442,0.00019287,101920.0,101910.0,0.58097785]
[1737627735640,0.00019287,101920.0,101910.0,0.60017815]
[1737627740465,0.00019287,101920.0,101910.0,0.78118488]
[1737627740676,8.7e-07,101920.0,101910.0,0.78118488]
[1737627742387,0.00010317,101930.0,101920.0,0.55842273]
[1737627742600,0.00060776,101930.0,101920.0,0.65577002]
[1737627743679,0.00039224,101940.0,101930.0,0.36101273]
[1737627743877,0.00039224,101940.0,101930.0,0.43836002]
[1737627748394,0.00039224,101940.0,101930.0,0.33742793]
[1737627748594,0.00039224,101940.0,101930.0,0.34774793]
[1737627749477,0.00039224,101940.0,101930.0,0.47798299]
[1737627749674,0.00039224,101940.0,101930.0,0.36697626]
[1737627749913,0.00039224,101940.0,101930.0,0.47798299]
[1737627751426,0.00039224,101940.0,101930.0,0.46766299]
[1737627751630,0.00039224,101940.0,101930.0,0.47798299]
[1737627753275,0.00039224,101940.0,101930.0,0.35665626]
[1737627753490,0.00039224,101940.0,101930.0,0.36697626]
[1737627755468,0.00039224,101940.0,101930.0,0.47798299]
[1737627755670,0.00039224,101940.0,101930.0,0.36697626]
[1737627758046,0.00053464,101940.0,101930.0,0.36697626]
[1737627759363,0.00053464,101940.0,101930.0,0.49798299]
[1737627761819,0.00053464,101940.0,101930.0,0.5232228]
[1737627761989,6.4e-07,101940.0,101930.0,0.49798299]
[1737627762224,6.4e-07,101940.0,101930.0,0.5536781]
[1737627762667,6.4e-07,101940.0,101930.0,0.54468265]
[1737627762875,6.4e-07,101940.0,101930.0,0.5232228]
[1737627763462,6.4e-07,101940.0,101930.0,0.49798299]
[1737627764423,6.4e-07,101940.0,101930.0,0.52845096]
[1737627765762,6.4e-07,101940.0,101930.0,0.51813096]
[1737627765953,6.4e-07,101940.0,101930.0,0.52845096]
[1737627768660,6.4e-07,101940.0,101930.0,0.49798299]
[1737627769503,6.4e-07,101940.0,101930.0,0.5285027]
[1737627770097,6.4e-07,101940.0,101930.0,0.52880174]
[1737627772361,6.4e-07,101940.0,101930.0,0.52881946]
[1737627773845,6.4e-07,101940.0,101930.0,0.51849946]
[1737627774190,6.4e-07,101940.0,101930.0,0.52881946]
[1737627782616,6.4e-07,101940.0,101930.0,0.86282619]
[1737627782818,6.4e-07,101940.0,101930.0,0.75181946]
[1737627785270,6.4e-07,101940.0,101930.0,0.86282619]
[1737627786039,4.4e-07,101950.0,101940.0,0.46130946]
[1737627786200,4.4e-07,101950.0,101940.0,0.81219418]
[1737627786610,4e-08,101960.0,101950.0,0.439287]
[1737627786848,5.4e-07,101970.0,101960.0,0.467177]
[1737627787048,8.5e-07,101970.0,101960.0,0.70606845]
[1737627787304,8.5e-07,101970.0,101960.0,0.82739518]
[1737627788236,8.5e-07,101970.0,101960.0,0.79407518]
[1737627788436,8.5e-07,101970.0,101960.0,0.80439518]
[1737627788993,5.432e-05,101980.0,101970.0,0.200768]
[1737627789194,5.432e-05,101980.0,101970.0,0.56852875]
[1737627789400,3.2e-07,101980.0,101970.0,0.76852875]
[1737627789603,3.2e-07,101980.0,101970.0,0.82198184]
[1737627789810,0.08793657,102010.0,102000.0,0.397539]
[1737627789984,0.08808783,102010.0,102000.0,0.60589302]
[1737627790749,0.08808783,102010.0,102000.0,0.63072187]
[1737627791243,0.00015126,102010.0,102000.0,0.63072187]
[1737627792675,0.00015126,102010.0,102000.0,0.60589302]
[1737627792876,0.00015126,102010.0,102000.0,0.60579809]
[1737627793073,0.00029366,102010.0,102000.0,0.46671302]
[1737627793635,0.00029366,102010.0,102000.0,0.31667302]
[1737627793912,0.00029366,102010.0,102000.0,0.11794965]
[1737627795116,0.00029366,102010.0,102000.0,0.21529694]
[1737627795519,0.00029366,102010.0,102000.0,0.32630367]
[1737627795926,0.00029366,102010.0,102000.0,0.21529694]
[1737627798246,0.00029366,102010.0,102000.0,0.11794965]
[1737627799196,0.00029366,102010.0,102000.0,0.10766965]
[1737627799441,0.00029366,102010.0,102000.0,0.11794965]
[1737627800148,0.00029366,102010.0,102000.0,0.21529694]
[1737627801281,0.00029366,102010.0,102000.0,0.20501694]
[1737627801497,0.00029366,102010.0,102000.0,0.21529694]
[1737627805798,0.00029366,102010.0,102000.0,0.19538629]
[1737627805998,0.00029366,102010.0,102000.0,0.108319]
[1737627806800,0.00029366,102010.0,102000.0,0.098039]
[1737627807005,0.09832266,102010.0,102000.0,0.098039]
[1737627807202,0.41169239,102010.0,101990.0,0.49050283]
[1737627807406,0.98916449,102010.0,101990.0,0.29441883]
[1737627807765,0.80943773,102010.0,101990.0,0.29441883]
[1737627807966,1.10286102,102010.0,101990.0,0.00029883]
[1737627808177,0.51534573,102000.0,101990.0,0.00029883]
[1737627809238,0.76269302,102000.0,101990.0,0.00029883]
[1737627809426,0.196136,101970.0,101940.0,0.09859252]
[1737627809629,0.40449002,101970.0,101940.0,0.31680183]
[1737627809854,0.60064102,101970.0,101950.0,0.098086]
[1737627810098,0.89486602,101970.0,101950.0,0.29426]
[1737627810274,0.294213,101970.0,101950.0,0.490434]
[1737627810492,0.594213,101970.0,101960.0,0.098077]
[1737627810689,0.098077,101970.0,101960.0,0.098077]
[1737627810906,0.098077,101970.0,101960.0,0.09822826]
[1737627811212,0.098077,101970.0,101960.0,0.00015126]
[1737627811439,0.20908373,101970.0,101960.0,0.00015126]
[1737627815464,0.20908373,101970.0,101960.0,0.00045009]
[1737627815764,0.35908373,101970.0,101960.0,0.00045009]
[1737627818170,0.93743775,101970.0,101960.0,0.00045009]
[1737627818483,0.94343775,101970.0,101960.0,0.00045009]
[1737627819308,0.83243102,101970.0,101960.0,0.00045009]
[1737627819509,0.92343775,101970.0,101960.0,0.00045009]
[1737627819714,0.81243102,101970.0,101960.0,0.00045009]
[1737627819915,0.83243102,101970.0,101960.0,0.00045009]
[1737627820116,0.78243102,101970.0,101960.0,0.00045009]
[1737627820339,0.51243102,101970.0,101960.0,0.00045009]
[1737627820542,0.83168102,101970.0,101960.0,0.00045009]
[1737627820849,0.76168102,101970.0,101960.0,0.00045009]
[1737627821349,0.81168102,101970.0,101960.0,0.00045009]
[1737627821565,0.77188727,101970.0,101960.0,0.00045009]
[1737627822534,0.66853998,101970.0,101960.0,0.00045009]
[1737627823555,0.66853998,101970.0,101960.0,9.00045009]
[1737627824218,0.71853998,101970.0,101960.0,9.00045009]
[1737627824667,0.82954671,101970.0,101960.0,9.00045009]
[1737627824862,0.71853998,101970.0,101960.0,9.00045009]
[1737627825624,1.02424129,101970.0,101960.0,9.00045009]
[1737627826541,0.926894,101970.0,101960.0,9.00045009]
[1737627826690,0.946894,101970.0,101960.0,9.00045009]
[1737627826894,0.896894,101970.0,101960.0,9.00045009]
[1737627827086,0.946894,101970.0,101960.0,9.00045009]
[1737627827937,0.626894,101970.0,101960.0,9.00045009]
[1737627828146,0.72424129,101970.0,101960.0,9.00045009]
[1737627829213,0.73024129,101970.0,101960.0,9.00045009]
[1737627829624,0.75023043,101970.0,101960.0,9.00045009]
[1737627829865,0.65288314,101970.0,101960.0,9.00045009]
[1737627830074,0.67588314,101970.0,101960.0,9.00045009]
[1737627831395,0.68581609,101970.0,101960.0,9.00045009]
[1737627832483,0.57180936,101970.0,101960.0,9.00045009]
[1737627832946,0.56580936,101970.0,101960.0,9.00045009]
[1737627836249,0.76588727,101970.0,101960.0,9.00045009]